[Event "EYCC Open-U18 2019"]
[Site "Bratislava"]
[Date "2019.08.06"]
[Round "5.39"]
[White "Polczyk, Mikolaj"]
[Black "Castillo Dalmau, Albert"]
[Result "1/2-1/2"]
[ECO "E16"]
[WhiteElo "2111"]
[BlackElo "2252"]
[Annotator "NA"]
[PlyCount "71"]
[EventDate "2019.08.02"]
[EventType "swiss"]
[EventCountry "SVK"]
[SourceTitle "playchess.com"]
[Source "ChessBase"]
[SourceQuality "1"]
[TimeControl "40/5400+30:1800+30"]

1. d4 {[%emt 0:00:00]} Nf6 {[%emt 0:00:00]} 2. c4 {[%emt 0:00:00]} e6 {[%emt 0:00:00]} 3. Nf3 {[%emt 0:00:00]} Bb4+ {[%emt 0:00:02]} 4. Bd2 {[%emt 0:00:24]} Qe7 {[%emt 0:00:08]} 5. g3 {[%emt 0:00:22]} Bxd2+ {[%emt 0:00:17]} 6. Qxd2 {[%emt 0:00:36]} Nc6 {[%emt 0:00:13]} 7. Bg2 {[%emt 0:04:21]} Ne4 {[%emt 0:00:33]} 8. Qc2 {[%emt 0:00:08]} Qb4+ {[%emt 0:00:05]} 9. Kf1 {[%emt 0:00:33]} d5 {[%emt 0:00:06]} 10. e3 {[%emt 0:01:09]} O-O {[%emt 0:00:34]} 11. Nbd2 {[%emt 0:09:30]} f5 {[%emt 0:01:12]} 12. a3 {[%emt 0:03:58]} Qe7 {[%emt 0:00:23]} 13. b4 {[%emt 0:00:56]} Bd7 {[%emt 0:06:42]} 14. h4 {[%emt 0:20:06]} Be8 {[%emt 0:11:13]} 15. Kg1 {[%emt 0:12:40]} a6 {[%emt 0:11:09]} 16. Bf1 {[%emt 0:09:34]} h6 {[%emt 0:14:56]} 17. Rc1 {[%emt 0:04:00]} Rc8 {[%emt 0:02:10]} 18. Kg2 {[%emt 0:02:15]} g5 {[%emt 0:02:10]} 19. hxg5 {[%emt 0:00:55]} hxg5 {[%emt 0:00:02]} 20. Bd3 {[%emt 0:03:09]} Kg7 {[%emt 0:00:11]} 21. Rh2 {[%emt 0:05:28]} g4 {[%emt 0:03:29]} 22. Ng1 {[%emt 0:00:27]} Nd8 {[%emt 0:05:35]} 23. cxd5 {[%emt 0:04:10]} exd5 {[%emt 0:00:07]} 24. Ne2 {[%emt 0:00:11]} Ne6 {[%emt 0:00:48]} 25. Rch1 {[%emt 0:00:35]} Bg6 {[%emt 0:00:18]} 26. Nf4 {[%emt 0:03:13]} Nxf4+ {[%emt 0:03:30]} 27. gxf4 {[%emt 0:00:07]} Nd6 {[%emt 0:02:59]} 28. Nf1 {[%emt 0:01:35]} c6 {[%emt 0:03:17]} 29. Ng3 {[%emt 0:00:24]} Qe6 {[%emt 0:05:28]} 30. Qc5 {[%emt 0:03:25]} Rh8 {[%emt 0:04:19]} 31. Qc1 {[%emt 0:02:06]} Rxh2+ {[%emt 0:03:48]} 32. Rxh2 {[%emt 0:00:04]} Rh8 {[%emt 0:00:07]} 33. Rxh8 {[%emt 0:00:40]} Kxh8 {[%emt 0:00:01]} 34. Qh1+ {[%emt 0:00:01]} Kg7 {[%emt 0:00:02]} 35. Qh4 {[%emt 0:00:18]} Qf6 {[%emt 0:00:08]} 36. Qxf6+ {[%emt 0:04:57]} 1/2-1/2

[Event "EYCC Open-U18 2019"]
[Site "Bratislava"]
[Date "2019.08.06"]
[Round "5.40"]
[White "Johannsson, Birkir Isak"]
[Black "Akdogan, Alperen"]
[Result "0-1"]
[ECO "A05"]
[WhiteElo "1988"]
[BlackElo "2193"]
[Annotator "NA"]
[PlyCount "68"]
[EventDate "2019.08.02"]
[EventType "swiss"]
[EventCountry "SVK"]
[SourceTitle "playchess.com"]
[Source "ChessBase"]
[SourceQuality "1"]
[TimeControl "40/5400+30:1800+30"]

1. Nf3 {[%emt 0:00:00]} Nf6 {[%emt 0:00:00]} 2. c4 {[%emt 0:00:00]} c6 {[%emt 0:00:11]} 3. Nc3 {[%emt 0:00:45]} d5 {[%emt 0:00:09]} 4. d4 {[%emt 0:00:13]} Bf5 {[%emt 0:01:26]} 5. cxd5 {[%emt 0:03:22]} Nxd5 {[%emt 0:05:59]} 6. g3 {[%emt 0:04:25]} e6 {[%emt 0:02:19]} 7. Bg2 {[%emt 0:00:48]} Be7 {[%emt 0:01:31]} 8. O-O {[%emt 0:00:25]} Nd7 {[%emt 0:06:33]} 9. Re1 {[%emt 0:02:47]} Nxc3 {[%emt 0:00:13]} 10. bxc3 {[%emt 0:00:02]} Be4 {[%emt 0:00:11]} 11. Bf4 {[%emt 0:02:43]} O-O {[%emt 0:08:22]} 12. Ne5 {[%emt 0:07:15]} Bxg2 {[%emt 0:02:12]} 13. Kxg2 {[%emt 0:00:27]} c5 {[%emt 0:11:21]} 14. Qb3 {[%emt 0:07:02]} Nxe5 {[%emt 0:04:39]} 15. Bxe5 {[%emt 0:00:17]} Qd7 {[%emt 0:00:13]} 16. e4 {[%emt 0:01:44]} Rac8 {[%emt 0:01:30]} 17. Rad1 {[%emt 0:03:31]} c4 {[%emt 0:05:28]} 18. Qc2 {[%emt 0:00:21]} b5 {[%emt 0:02:02]} 19. d5 {[%emt 0:02:09]} f6 {[%emt 0:01:19]} 20. Bf4 {[%emt 0:10:41]} e5 {[%emt 0:00:07]} 21. Be3 {[%emt 0:01:04]} Bd6 {[%emt 0:00:34]} 22. a4 {[%emt 0:04:29]} b4 {[%emt 0:05:50]} 23. cxb4 {[%emt 0:00:24]} Bxb4 {[%emt 0:00:02]} 24. Re2 {[%emt 0:00:37]} a5 {[%emt 0:01:06]} 25. f4 {[%emt 0:05:52]} Qd6 {[%emt 0:02:38]} 26. fxe5 {[%emt 0:03:43]} fxe5 {[%emt 0:00:07]} 27. Rf1 {[%emt 0:00:27]} Rxf1 {[%emt 0:01:00]} 28. Kxf1 {[%emt 0:00:02]} c3 {[%emt 0:02:44]} 29. Qd3 {[%emt 0:02:17]} Qc7 {[%emt 0:07:01]} 30. Rc2 {[%emt 0:00:47]} Qd7 {[%emt 0:00:36]} 31. Qb5 {[%emt 0:02:32]} Qg4 {[%emt 0:00:37]} 32. Qd3 {[%emt 0:00:57]} Qf3+ {[%emt 0:01:28]} 33. Kg1 {[%emt 0:00:50]} Bc5 {[%emt 0:00:39]} 34. Re2 {[%emt 0:02:02]} c2 {[%emt 0:00:26]} 0-1

[Event "EYCC Open-U18 2019"]
[Site "Bratislava"]
[Date "2019.08.06"]
[Round "5.41"]
[White "Panko, Eduard"]
[Black "Mirri, Pietro"]
[Result "0-1"]
[ECO "C00"]
[WhiteElo "2024"]
[BlackElo "2194"]
[Annotator "NA"]
[PlyCount "120"]
[EventDate "2019.08.02"]
[EventType "swiss"]
[EventCountry "SVK"]
[SourceTitle "playchess.com"]
[Source "ChessBase"]
[SourceQuality "1"]
[TimeControl "40/5400+30:1800+30"]

1. e4 {[%emt 0:00:00]} e6 {[%emt 0:00:00]} 2. b3 {[%emt 0:00:00]} d5 {[%emt 0:00:05]} 3. Bb2 {[%emt 0:00:00]} Nf6 {[%emt 0:04:41]} 4. e5 {[%emt 0:00:07]} Nfd7 {[%emt 0:00:05]} 5. f4 {[%emt 0:00:22]} c5 {[%emt 0:00:28]} 6. Qg4 {[%emt 0:00:23]} Nc6 {[%emt 0:02:24]} 7. Nf3 {[%emt 0:00:14]} Nb6 {[%emt 0:04:46]} 8. Na3 {[%emt 0:02:02]} a6 {[%emt 0:00:43]} 9. Bd3 {[%emt 0:02:12]} Bd7 {[%emt 0:05:58]} 10. Ng5 {[%emt 0:10:23]} g6 {[%emt 0:03:26]} 11. h4 {[%emt 0:05:28]} h5 {[%emt 0:05:21]} 12. Qg3 {[%emt 0:00:39]} Rg8 {[%emt 0:00:35]} 13. Be2 {[%emt 0:15:12]} Be7 {[%emt 0:10:22]} 14. c3 {[%emt 0:05:10]} Rc8 {[%emt 0:06:30]} 15. Nc2 {[%emt 0:02:06]} Bxg5 {[%emt 0:04:18]} 16. hxg5 {[%emt 0:01:45]} Ne7 {[%emt 0:00:52]} 17. Qf2 {[%emt 0:00:47]} Bb5 {[%emt 0:05:56]} 18. Bxb5+ {[%emt 0:04:35]} axb5 {[%emt 0:00:04]} 19. d4 {[%emt 0:01:14]} Nd7 {[%emt 0:04:06]} 20. Rh3 {[%emt 0:01:57]} Nf5 {[%emt 0:04:22]} 21. Ne3 {[%emt 0:10:57]} Nxe3 {[%emt 0:00:22]} 22. Qxe3 {[%emt 0:00:26]} Qb6 {[%emt 0:06:20]} 23. Qd2 {[%emt 0:11:53]} Nb8 {[%emt 0:06:23]} 24. Ba3 {[%emt 0:01:29]} Na6 {[%emt 0:00:49]} 25. Bxc5 {[%emt 0:03:49]} Nxc5 {[%emt 0:00:15]} 26. dxc5 {[%emt 0:00:03]} Qxc5 {[%emt 0:00:38]} 27. Qe3 {[%emt 0:00:31]} Ke7 {[%emt 0:02:28]} 28. Qxc5+ {[%emt 0:01:44]} Rxc5 {[%emt 0:00:04]} 29. Kd2 {[%emt 0:00:39]} Rgc8 {[%emt 0:00:27]} 30. Rc1 {[%emt 0:04:21]} b4 {[%emt 0:02:20]} 31. Rc2 {[%emt 0:01:50]} b5 {[%emt 0:03:20]} 32. Rf3 {[%emt 0:08:08]} Kd7 {[%emt 0:06:41]} 33. Rd3 {[%emt 0:00:12]} R8c6 {[%emt 0:00:51]} 34. g3 {[%emt 0:02:03]} Kc7 {[%emt 0:01:29]} 35. Rc1 {[%emt 0:01:03]} Kb6 {[%emt 0:01:23]} 36. a3 {[%emt 0:00:51]} bxa3 {[%emt 0:02:26]} 37. b4 {[%emt 0:00:14]} Rc4 {[%emt 0:00:10]} 38. Ra1 {[%emt 0:00:23]} d4 {[%emt 0:00:46]} 39. Rxa3 {[%emt 0:01:04]} dxc3+ {[%emt 0:00:15]} 40. Rdxc3 {[%emt 0:00:00]} Rd4+ {[%emt 0:00:00]} 41. Kc2 {[%emt 0:10:34]} Rxb4 {[%emt 0:06:55]} 42. Rxc6+ {[%emt 0:03:03]} Kxc6 {[%emt 0:00:04]} 43. Ra7 {[%emt 0:00:11]} h4 {[%emt 0:03:11]} 44. gxh4 {[%emt 0:08:13]} Rxf4 {[%emt 0:00:07]} 45. Kd3 {[%emt 0:00:50]} Kc5 {[%emt 0:01:15]} 46. Ke3 {[%emt 0:01:53]} Rf5 {[%emt 0:00:35]} 47. Ke4 {[%emt 0:00:43]} b4 {[%emt 0:02:57]} 48. Rc7+ {[%emt 0:00:20]} Kb5 {[%emt 0:00:06]} 49. Rb7+ {[%emt 0:00:31]} Kc4 {[%emt 0:00:35]} 50. Rc7+ {[%emt 0:00:30]} Kb3 {[%emt 0:00:06]} 51. h5 {[%emt 0:02:24]} gxh5 {[%emt 0:02:19]} 52. g6 {[%emt 0:00:08]} fxg6 {[%emt 0:00:08]} 53. Rc6 {[%emt 0:00:14]} Ka2 {[%emt 0:03:43]} 54. Rxe6 {[%emt 0:00:12]} b3 {[%emt 0:00:36]} 55. Rxg6 {[%emt 0:01:25]} Rf1 {[%emt 0:01:08]} 56. Ra6+ {[%emt 0:02:51]} Kb1 {[%emt 0:00:28]} 57. Kd3 {[%emt 0:02:58]} b2 {[%emt 0:08:09]} 58. Kd2 {[%emt 0:01:15]} Rf2+ {[%emt 0:06:02]} 59. Kd1 {[%emt 0:01:31]} Rf5 {[%emt 0:02:25]} 60. Re6 {[%emt 0:02:37]} h4 {[%emt 0:01:06]} 0-1

[Event "EYCC Open-U18 2019"]
[Site "Bratislava"]
[Date "2019.08.06"]
[Round "5.42"]
[White "Ghersinich, Enrico"]
[Black "Durica, Adam"]
[Result "0-1"]
[ECO "C41"]
[WhiteElo "2221"]
[BlackElo "1958"]
[Annotator "NA"]
[PlyCount "152"]
[EventDate "2019.08.02"]
[EventType "swiss"]
[EventCountry "SVK"]
[SourceTitle "playchess.com"]
[Source "ChessBase"]
[SourceQuality "1"]
[TimeControl "40/5400+30:1800+30"]

1. e4 {[%emt 0:00:00]} e5 {[%emt 0:00:07]} 2. Nf3 {[%emt 0:00:00]} d6 {[%emt 0:00:16]} 3. d4 {[%emt 0:00:35]} Nd7 {[%emt 0:00:33]} 4. Bc4 {[%emt 0:01:35]} c6 {[%emt 0:00:12]} 5. a4 {[%emt 0:00:48]} Be7 {[%emt 0:00:16]} 6. O-O {[%emt 0:01:01]} Ngf6 {[%emt 0:00:14]} 7. Nc3 {[%emt 0:00:46]} O-O {[%emt 0:00:12]} 8. h3 {[%emt 0:01:07]} Qc7 {[%emt 0:02:42]} 9. Re1 {[%emt 0:01:21]} b6 {[%emt 0:01:08]} 10. Bf1 {[%emt 0:06:14]} Bb7 {[%emt 0:00:55]} 11. g4 {[%emt 0:02:14]} Rfd8 {[%emt 0:09:22]} 12. Bg2 {[%emt 0:03:20]} Rac8 {[%emt 0:07:07]} 13. Qe2 {[%emt 0:06:33]} Nf8 {[%emt 0:08:00]} 14. Nd1 {[%emt 0:08:29]} Ne6 {[%emt 0:04:30]} 15. c3 {[%emt 0:00:18]} Rf8 {[%emt 0:12:39]} 16. Ng5 {[%emt 0:05:15]} exd4 {[%emt 0:06:51]} 17. Nxe6 {[%emt 0:00:20]} fxe6 {[%emt 0:00:09]} 18. cxd4 {[%emt 0:00:11]} e5 {[%emt 0:00:57]} 19. g5 {[%emt 0:06:09]} Ne8 {[%emt 0:01:04]} 20. d5 {[%emt 0:00:17]} cxd5 {[%emt 0:01:08]} 21. exd5 {[%emt 0:00:14]} g6 {[%emt 0:01:47]} 22. Nc3 {[%emt 0:01:36]} Ng7 {[%emt 0:01:54]} 23. f4 {[%emt 0:03:11]} exf4 {[%emt 0:03:37]} 24. Bxf4 {[%emt 0:08:21]} Rxf4 {[%emt 0:00:57]} 25. Qxe7 {[%emt 0:00:10]} Qc5+ {[%emt 0:01:23]} 26. Kh2 {[%emt 0:00:28]} Rc7 {[%emt 0:00:19]} 27. Qe2 {[%emt 0:01:19]} Rf2 {[%emt 0:02:07]} 28. Qe4 {[%emt 0:12:19]} Rxb2 {[%emt 0:02:33]} 29. Ne2 {[%emt 0:02:18]} Qc2 {[%emt 0:06:04]} 30. Qf4 {[%emt 0:02:19]} Qc5 {[%emt 0:06:34]} 31. Rac1 {[%emt 0:01:07]} Rf7 {[%emt 0:00:02]} 32. Rxc5 {[%emt 0:08:51]} Rxf4 {[%emt 0:00:10]} 33. Rc7 {[%emt 0:00:15]} Rf7 {[%emt 0:00:34]} 34. Rxf7 {[%emt 0:01:57]} Kxf7 {[%emt 0:00:08]} 35. Nc3 {[%emt 0:03:11]} Nf5 {[%emt 0:01:08]} 36. Kg1 {[%emt 0:00:13]} Nh4 {[%emt 0:02:10]} 37. Be4 {[%emt 0:00:17]} Ba6 {[%emt 0:00:09]} 38. Rc1 {[%emt 0:00:57]} Bd3 {[%emt 0:03:13]} 39. Nd1 {[%emt 0:04:56]} Rd2 {[%emt 0:00:13]} 40. Bh1 {[%emt 0:00:00]} Be2 {[%emt 0:00:00]} 41. Rc7+ {[%emt 0:05:22]} Kg8 {[%emt 0:02:30]} 42. Ne3 {[%emt 0:00:28]} Bf3 {[%emt 0:00:25]} 43. Ng4 {[%emt 0:09:28]} Rd1+ {[%emt 0:00:34]} 44. Kf2 {[%emt 0:03:02]} Bxh1 {[%emt 0:01:15]} 45. Nf6+ {[%emt 0:00:11]} Kf8 {[%emt 0:00:10]} 46. Nxh7+ {[%emt 0:00:44]} Kg8 {[%emt 0:01:13]} 47. Nf6+ {[%emt 0:00:08]} Kf8 {[%emt 0:00:02]} 48. Nh7+ {[%emt 0:01:24]} Ke8 {[%emt 0:02:29]} 49. Rxa7 {[%emt 0:01:24]} Nf5 {[%emt 0:00:33]} 50. Nf6+ {[%emt 0:01:05]} Kd8 {[%emt 0:00:02]} 51. Rb7 {[%emt 0:02:55]} Rd2+ {[%emt 0:00:08]} 52. Ke1 {[%emt 0:00:30]} Rb2 {[%emt 0:01:10]} 53. a5 {[%emt 0:00:23]} Kc8 {[%emt 0:01:55]} 54. a6 {[%emt 0:00:26]} Bf3 {[%emt 0:00:56]} 55. Nd7 {[%emt 0:05:03]} Re2+ {[%emt 0:03:04]} 56. Kd1 {[%emt 0:00:23]} Ra2+ {[%emt 0:00:12]} 57. Ke1 {[%emt 0:00:51]} Rxa6 {[%emt 0:00:43]} 58. Rxb6 {[%emt 0:00:12]} Rxb6 {[%emt 0:00:23]} 59. Nxb6+ {[%emt 0:00:06]} Kc7 {[%emt 0:00:03]} 60. Na4 {[%emt 0:01:10]} Bxd5 {[%emt 0:00:03]} 61. Kf2 {[%emt 0:01:14]} Kc6 {[%emt 0:00:47]} 62. Nb2 {[%emt 0:01:48]} Be4 {[%emt 0:00:23]} 63. Nc4 {[%emt 0:00:59]} Kc5 {[%emt 0:00:46]} 64. Na5 {[%emt 0:01:19]} Bd5 {[%emt 0:00:12]} 65. h4 {[%emt 0:00:43]} Kb5 {[%emt 0:00:18]} 66. h5 {[%emt 0:00:20]} gxh5 {[%emt 0:00:02]} 67. Nb3 {[%emt 0:00:15]} Bxb3 {[%emt 0:00:02]} 68. Kf3 {[%emt 0:00:06]} Bc2 {[%emt 0:00:58]} 69. Kf4 {[%emt 0:00:13]} Nh4 {[%emt 0:00:01]} 70. g6 {[%emt 0:00:24]} Nxg6+ {[%emt 0:00:02]} 71. Kg5 {[%emt 0:00:08]} h4 {[%emt 0:00:06]} 72. Kg4 {[%emt 0:00:04]} d5 {[%emt 0:00:05]} 73. Kf3 {[%emt 0:00:24]} d4 {[%emt 0:00:06]} 74. Ke2 {[%emt 0:00:09]} h3 {[%emt 0:00:10]} 75. Kf2 {[%emt 0:00:13]} d3 {[%emt 0:00:09]} 76. Ke3 {[%emt 0:00:14]} h2 {[%emt 0:00:07]} 0-1

[Event "EYCC Open-U18 2019"]
[Site "Bratislava"]
[Date "2019.08.06"]
[Round "5.43"]
[White "Brinovec, David"]
[Black "Cordeiro, Joao Carlos Santos F"]
[Result "1-0"]
[ECO "A45"]
[WhiteElo "2205"]
[BlackElo "1924"]
[Annotator "NA"]
[PlyCount "61"]
[EventDate "2019.08.02"]
[EventType "swiss"]
[EventCountry "SVK"]
[SourceTitle "playchess.com"]
[Source "ChessBase"]
[SourceQuality "1"]
[TimeControl "40/5400+30:1800+30"]

1. d4 {[%emt 0:00:00]} Nf6 {[%emt 0:00:00]} 2. Bf4 {[%emt 0:00:00]} d5 {[%emt 0:00:09]} 3. e3 {[%emt 0:00:01]} e6 {[%emt 0:00:06]} 4. c3 {[%emt 0:00:04]} Bd6 {[%emt 0:00:41]} 5. Bg3 {[%emt 0:00:07]} O-O {[%emt 0:00:13]} 6. Nd2 {[%emt 0:00:06]} c5 {[%emt 0:00:32]} 7. Bd3 {[%emt 0:00:34]} Nc6 {[%emt 0:01:20]} 8. Ngf3 {[%emt 0:00:11]} b6 {[%emt 0:03:52]} 9. e4 {[%emt 0:12:23]} Be7 {[%emt 0:08:28]} 10. e5 {[%emt 0:03:26]} Nh5 {[%emt 0:04:16]} 11. Ng5 {[%emt 0:04:01]} g6 {[%emt 0:10:18]} 12. Nxh7 {[%emt 0:07:49]} Re8 {[%emt 0:00:49]} 13. Qg4 {[%emt 0:04:30]} Kxh7 {[%emt 0:14:59]} 14. Qxh5+ {[%emt 0:00:47]} Kg7 {[%emt 0:00:06]} 15. Qg4 {[%emt 0:01:06]} Rh8 {[%emt 0:00:50]} 16. O-O {[%emt 0:15:57]} cxd4 {[%emt 0:00:36]} 17. cxd4 {[%emt 0:00:15]} Nb4 {[%emt 0:06:02]} 18. Be2 {[%emt 0:10:07]} Bb7 {[%emt 0:04:36]} 19. a3 {[%emt 0:02:45]} Nc6 {[%emt 0:00:04]} 20. Nb3 {[%emt 0:01:08]} a5 {[%emt 0:01:18]} 21. Rac1 {[%emt 0:07:25]} a4 {[%emt 0:06:13]} 22. Nd2 {[%emt 0:00:55]} Bg5 {[%emt 0:07:05]} 23. f4 {[%emt 0:05:10]} Bh4 {[%emt 0:02:06]} 24. Nf3 {[%emt 0:02:03]} Bxg3 {[%emt 0:00:52]} 25. Qxg3 {[%emt 0:00:10]} Na5 {[%emt 0:13:59]} 26. Ng5 {[%emt 0:01:59]} Nb3 {[%emt 0:03:50]} 27. Rcd1 {[%emt 0:01:07]} Ba6 {[%emt 0:00:36]} 28. Bxa6 {[%emt 0:00:55]} Rxa6 {[%emt 0:00:05]} 29. f5 {[%emt 0:00:40]} exf5 {[%emt 0:04:23]} 30. Rxf5 {[%emt 0:00:57]} Ra7 {[%emt 0:04:32]} 31. Rxf7+ {[%emt 0:02:18]} 1-0

[Event "EYCC Open-U18 2019"]
[Site "Bratislava"]
[Date "2019.08.06"]
[Round "5.44"]
[White "Sousa, Hugo Carneiro"]
[Black "Novosel, Marko"]
[Result "1/2-1/2"]
[ECO "B16"]
[WhiteElo "2130"]
[BlackElo "1981"]
[Annotator "NA"]
[PlyCount "101"]
[EventDate "2019.08.02"]
[EventType "swiss"]
[EventCountry "SVK"]
[SourceTitle "playchess.com"]
[Source "ChessBase"]
[SourceQuality "1"]
[TimeControl "40/5400+30:1800+30"]

1. e4 {[%emt 0:00:00]} c6 {[%emt 0:00:00]} 2. d4 {[%emt 0:00:00]} d5 {[%emt 0:00:00]} 3. Nc3 {[%emt 0:00:00]} dxe4 {[%emt 0:00:00]} 4. Nxe4 {[%emt 0:00:05]} Nf6 {[%emt 0:00:01]} 5. Nxf6+ {[%emt 0:00:10]} gxf6 {[%emt 0:00:08]} 6. Nf3 {[%emt 0:01:02]} Bg4 {[%emt 0:01:25]} 7. c3 {[%emt 0:01:59]} e6 {[%emt 0:00:36]} 8. g3 {[%emt 0:01:58]} h5 {[%emt 0:02:31]} 9. h3 {[%emt 0:09:58]} Bxf3 {[%emt 0:00:57]} 10. Qxf3 {[%emt 0:00:07]} Nd7 {[%emt 0:00:47]} 11. Bg2 {[%emt 0:01:22]} Bd6 {[%emt 0:00:32]} 12. O-O {[%emt 0:02:28]} h4 {[%emt 0:03:52]} 13. Bf4 {[%emt 0:11:03]} Qc7 {[%emt 0:04:27]} 14. Bxd6 {[%emt 0:02:58]} Qxd6 {[%emt 0:02:59]} 15. g4 {[%emt 0:02:26]} O-O-O {[%emt 0:02:23]} 16. b4 {[%emt 0:01:35]} f5 {[%emt 0:13:13]} 17. gxf5 {[%emt 0:03:41]} Rdg8 {[%emt 0:01:50]} 18. Kh1 {[%emt 0:02:55]} Rg5 {[%emt 0:00:25]} 19. fxe6 {[%emt 0:03:13]} fxe6 {[%emt 0:00:19]} 20. a4 {[%emt 0:02:13]} Rhg8 {[%emt 0:01:03]} 21. Rg1 {[%emt 0:01:25]} Rf8 {[%emt 0:00:17]} 22. Qe2 {[%emt 0:01:50]} Rgf5 {[%emt 0:00:23]} 23. Raf1 {[%emt 0:02:36]} Nf6 {[%emt 0:15:00]} 24. b5 {[%emt 0:07:11]} cxb5 {[%emt 0:04:57]} 25. Rb1 {[%emt 0:08:40]} b4 {[%emt 0:06:56]} 26. Rxb4 {[%emt 0:12:01]} Nd5 {[%emt 0:00:15]} 27. Rb2 {[%emt 0:00:49]} Rxf2 {[%emt 0:03:14]} 28. Qxf2 {[%emt 0:00:42]} Rxf2 {[%emt 0:00:06]} 29. Rxf2 {[%emt 0:00:02]} Nf4 {[%emt 0:10:15]} 30. Be4 {[%emt 0:05:05]} e5 {[%emt 0:06:48]} 31. Rg8+ {[%emt 0:01:24]} Kd7 {[%emt 0:01:59]} 32. Rg7+ {[%emt 0:00:47]} Ke8 {[%emt 0:01:18]} 33. Rxb7 {[%emt 0:01:45]} Qa3 {[%emt 0:03:57]} 34. Rfb2 {[%emt 0:05:46]} exd4 {[%emt 0:01:38]} 35. R7b3 {[%emt 0:03:03]} Qxa4 {[%emt 0:01:43]} 36. cxd4 {[%emt 0:00:56]} Qxd4 {[%emt 0:04:52]} 37. Bb7 {[%emt 0:01:33]} Qd1+ {[%emt 0:03:48]} 38. Kh2 {[%emt 0:00:07]} Qd6 {[%emt 0:00:13]} 39. Kh1 {[%emt 0:02:32]} Qd1+ {[%emt 0:00:15]} 40. Kh2 {[%emt 0:00:00]} Qd6 {[%emt 0:00:00]} 41. Rb1 {[%emt 0:06:40]} Nd3+ {[%emt 0:08:30]} 42. Kh1 {[%emt 0:00:58]} Qg3 {[%emt 0:01:38]} 43. Bg2 {[%emt 0:02:59]} Nf2+ {[%emt 0:06:41]} 44. Kg1 {[%emt 0:00:04]} Nxh3+ {[%emt 0:00:08]} 45. Kh1 {[%emt 0:00:09]} Nf2+ {[%emt 0:00:03]} 46. Kg1 {[%emt 0:00:04]} Nd3 {[%emt 0:01:38]} 47. Rb8+ {[%emt 0:01:53]} Ke7 {[%emt 0:00:41]} 48. R1b7+ {[%emt 0:03:53]} Kd6 {[%emt 0:01:58]} 49. Rd8+ {[%emt 0:00:26]} Kc5 {[%emt 0:00:25]} 50. Rd5+ {[%emt 0:01:41]} Kc4 {[%emt 0:01:01]} 51. Rxd3 {[%emt 0:00:33]} 1/2-1/2

[Event "EYCC Open-U18 2019"]
[Site "Bratislava"]
[Date "2019.08.06"]
[Round "5.45"]
[White "Kizatbay, Abyl"]
[Black "Ihnat, Marek"]
[Result "1-0"]
[ECO "B52"]
[WhiteElo "2216"]
[BlackElo "1946"]
[Annotator "NA"]
[PlyCount "87"]
[EventDate "2019.08.02"]
[EventType "swiss"]
[EventCountry "SVK"]
[SourceTitle "playchess.com"]
[Source "ChessBase"]
[SourceQuality "1"]
[TimeControl "40/5400+30:1800+30"]

1. e4 {[%emt 0:00:00]} c5 {[%emt 0:00:00]} 2. Nf3 {[%emt 0:00:00]} d6 {[%emt 0:00:00]} 3. Bb5+ {[%emt 0:00:00]} Bd7 {[%emt 0:00:00]} 4. Bxd7+ {[%emt 0:00:10]} Qxd7 {[%emt 0:00:00]} 5. c4 {[%emt 0:00:32]} Nc6 {[%emt 0:00:09]} 6. d4 {[%emt 0:00:18]} cxd4 {[%emt 0:00:10]} 7. Nxd4 {[%emt 0:00:11]} g6 {[%emt 0:01:55]} 8. Nc3 {[%emt 0:01:17]} Bg7 {[%emt 0:00:11]} 9. Be3 {[%emt 0:00:04]} Nf6 {[%emt 0:00:16]} 10. f3 {[%emt 0:00:38]} O-O {[%emt 0:00:24]} 11. O-O {[%emt 0:00:36]} a6 {[%emt 0:02:09]} 12. Qd3 {[%emt 0:01:53]} e6 {[%emt 0:11:23]} 13. Rfd1 {[%emt 0:07:43]} Rfd8 {[%emt 0:06:03]} 14. Nxc6 {[%emt 0:02:43]} Qxc6 {[%emt 0:05:34]} 15. Rac1 {[%emt 0:03:14]} Rab8 {[%emt 0:22:05]} 16. a4 {[%emt 0:02:34]} Ne8 {[%emt 0:07:03]} 17. a5 {[%emt 0:05:08]} Rbc8 {[%emt 0:08:44]} 18. b3 {[%emt 0:08:06]} Bxc3 {[%emt 0:08:46]} 19. Qxc3 {[%emt 0:05:20]} d5 {[%emt 0:04:30]} 20. Bb6 {[%emt 0:03:50]} Rd6 {[%emt 0:03:37]} 21. e5 {[%emt 0:05:39]} Rd7 {[%emt 0:00:09]} 22. Qd2 {[%emt 0:00:14]} f5 {[%emt 0:07:09]} 23. h4 {[%emt 0:11:20]} Nc7 {[%emt 0:04:12]} 24. Kh2 {[%emt 0:11:17]} d4 {[%emt 0:03:45]} 25. Bxd4 {[%emt 0:06:26]} Rcd8 {[%emt 0:01:22]} 26. Qc3 {[%emt 0:01:49]} Na8 {[%emt 0:01:34]} 27. Rd2 {[%emt 0:01:38]} b5 {[%emt 0:00:58]} 28. axb6 {[%emt 0:02:02]} Nxb6 {[%emt 0:00:10]} 29. Rcd1 {[%emt 0:00:31]} Rb8 {[%emt 0:01:20]} 30. Bxb6 {[%emt 0:04:49]} Rxd2 {[%emt 0:00:08]} 31. Qxd2 {[%emt 0:00:01]} Qxb6 {[%emt 0:00:24]} 32. Qd7 {[%emt 0:00:13]} Rb7 {[%emt 0:01:11]} 33. Qe8+ {[%emt 0:06:29]} Kg7 {[%emt 0:00:06]} 34. Rd8 {[%emt 0:00:09]} Kh6 {[%emt 0:00:47]} 35. Qf8+ {[%emt 0:05:06]} Kh5 {[%emt 0:00:13]} 36. Qf6 {[%emt 0:02:58]} Qe3 {[%emt 0:00:59]} 37. Rd3 {[%emt 0:00:16]} Qf4+ {[%emt 0:00:30]} 38. g3 {[%emt 0:02:12]} Qc1 {[%emt 0:00:09]} 39. g4+ {[%emt 0:01:08]} fxg4 {[%emt 0:00:52]} 40. fxg4+ {[%emt 0:00:00]} Kh6 {[%emt 0:00:00]} 41. g5+ {[%emt 0:04:09]} Kh5 {[%emt 0:01:28]} 42. Qf3+ {[%emt 0:00:30]} Kxh4 {[%emt 0:00:08]} 43. Rd4+ {[%emt 0:00:17]} Kxg5 {[%emt 0:00:14]} 44. Qf6+ {[%emt 0:00:09]} 1-0